fUSD/lending_fUSD_20260108
["ID","MTS","AMOUNT","RATE_DAILY","PERIOD"]
[401002602,1767883842847,-250.0,0.00017099,2]
[401002604,1767883842856,-1500.0,0.00017099,2]
[401002606,1767883842866,-250.0,0.00017099,2]
[401002608,1767883842875,-1500.0,0.00017099,2]
[401002610,1767883842884,-1500.0,0.00017099,2]
[401002613,1767883842894,-1500.0,0.00017099,2]
[401002615,1767883842903,-1500.0,0.00017099,2]
[401002616,1767883842912,-2000.0,0.00017099,2]
[401002619,1767883842922,-238.63712889,0.00017099,2]
[401002620,1767883842931,-2000.0,0.00017099,2]
[401002622,1767883842941,-2000.0,0.00017099,2]
[401002652,1767883843207,-2000.0,0.00017099,2]
[401002654,1767883843220,-500.0,0.00017099,2]
[401002656,1767883843230,-250.0,0.00017099,2]
[401002658,1767883843239,-500.0,0.00017099,2]
[401002660,1767883843250,-500.0,0.00017099,2]
[401002662,1767883843259,-500.0,0.00017099,2]
[401002664,1767883843268,-500.0,0.00017099,2]
[401002666,1767883843277,-500.0,0.00017099,2]
[401002668,1767883843288,-500.0,0.00017099,2]
[401002670,1767883843298,-500.0,0.00017099,2]
[401002673,1767883843307,-500.0,0.00017099,2]
[401002674,1767883843316,-500.0,0.00017099,2]
[401002677,1767883843326,-500.0,0.00017099,2]
[401002679,1767883843335,-500.0,0.00017099,2]
[401002680,1767883843344,-500.0,0.00017099,2]
[401002682,1767883843353,-500.0,0.00017099,2]
[401002685,1767883843363,-500.0,0.00017099,2]
[401002687,1767883843372,-500.0,0.00017099,2]
[401002689,1767883843385,-500.0,0.00017099,2]
[401002691,1767883843394,-500.0,0.00017099,2]
[401002693,1767883843403,-500.0,0.00017099,2]
[401002695,1767883843412,-500.0,0.00017099,2]
[401002697,1767883843424,-500.0,0.00017099,2]
[401002699,1767883843434,-500.0,0.00017099,2]
[401002701,1767883843443,-151.0,0.00017099,2]
[401002703,1767883843452,-151.0,0.00017099,2]
[401002705,1767883843462,-620.0,0.00017099,2]
[401002707,1767883843472,-1000.0,0.00017112,2]
[401002709,1767883843482,-500.0,0.00017132,2]
[401002711,1767883843491,-500.0,0.00017132,2]
[401002713,1767883843501,-5284.10968142,0.00017141,2]
[401002715,1767883843511,-2321.9,0.00017191,2]
[401002717,1767883843520,-152.0,0.00017292,10]
[401002719,1767883843530,-1026.76992162,0.00017299,2]
[401002721,1767883843540,-50623.16,0.000173,2]
[401002723,1767883843550,-2321.9,0.00017306,2]
[401002725,1767883843559,-2321.9,0.00017422,2]
[401002727,1767883843570,-2129.0,0.00017464,2]
[401002730,1767883843582,-2000.0,0.000175,2]
[401002732,1767883843592,-3000.0,0.00017502,2]
[401002734,1767883843602,-272.405,0.00017505,2]
[401002736,1767883843612,-6453.0,0.00017519,2]
[401002738,1767883843621,-2321.9,0.00017537,2]
[401002740,1767883843631,-152.0,0.00017537,11]
[401002742,1767883843640,-207.87,0.00017544,2]
[401002744,1767883843649,-157.72323008,0.00017561,2]
[401002746,1767883843659,-7551.57044864,0.0001764,2]
[401002748,1767883843669,-311.1,0.00017647,2]
[401002750,1767883843679,-151.0,0.00017647,2]
[401002752,1767883843688,-2321.9,0.00017653,2]
[401002754,1767883843697,-300.0,0.00017692,2]
[401002756,1767883843707,-300.0,0.00017696,2]
[401002758,1767883843716,-300.0,0.00017704,2]
[401002760,1767883843726,-300.0,0.00017706,2]
[401002762,1767883843735,-300.0,0.00017707,2]
[401002764,1767883843744,-1000.0,0.00017709,2]
[401002766,1767883843753,-300.0,0.00017724,2]
[401002768,1767883843762,-300.0,0.00017729,2]
[401002770,1767883843772,-300.0,0.0001773,2]
[401002772,1767883843783,-300.0,0.00017732,2]
[401002774,1767883843793,-300.0,0.00017743,2]
[401002776,1767883843803,-300.0,0.00017745,2]
[401002778,1767883843813,-300.0,0.0001775,2]
[401002780,1767883843822,-300.0,0.00017754,2]
[401002782,1767883843831,-300.0,0.00017761,2]
[401002784,1767883843841,-300.0,0.00017762,2]
[401002787,1767883843852,-300.0,0.00017763,2]
[401002789,1767883843862,-300.0,0.00017766,2]
[401002792,1767883843872,-300.0,0.00017767,2]
[401002794,1767883843881,-300.0,0.00017767,2]
[401002796,1767883843891,-300.0,0.00017768,2]
[401002799,1767883843901,-300.0,0.00017769,2]
[401002802,1767883843910,-2321.9,0.00017769,2]
[401002805,1767883843920,-300.0,0.0001777,2]
[401002807,1767883843930,-300.0,0.00017772,2]
[401002809,1767883843939,-300.0,0.00017772,2]
[401002811,1767883843948,-300.0,0.00017773,2]
[401002813,1767883843957,-300.0,0.00017777,2]
[401002816,1767883843967,-10000.0,0.0001778,2]
[401002819,1767883843977,-152.0,0.00017782,12]
[401002821,1767883843986,-300.0,0.00017783,2]
[401002823,1767883843996,-300.0,0.00017786,2]
[401002824,1767883844009,-300.0,0.0001779,2]
[401002826,1767883844018,-300.0,0.0001779,2]
[401002829,1767883844028,-25000.0,0.00017794,3]
[401002831,1767883844037,-300.0,0.00017797,2]
[401002832,1767883844048,-300.0,0.00017798,2]
[401002835,1767883844058,-150.0,0.000178,2]
[401002837,1767883844067,-196.86885843,0.000178,2]
[401002839,1767883844078,-300.0,0.00017802,2]
[401002840,1767883844087,-25000.0,0.00017803,3]
[401002843,1767883844097,-300.0,0.00017809,2]
[401002845,1767883844106,-300.0,0.00017809,2]
[401002846,1767883844116,-300.0,0.0001781,2]
[401002848,1767883844126,-300.0,0.00017811,2]
[401002851,1767883844135,-25000.0,0.00017812,3]
[401002853,1767883844144,-787.62614361,0.00017812,2]
[401002855,1767883844153,-1608.57952,0.0001782,2]
[401002857,1767883844164,-1608.57953,0.0001782,2]
[401002859,1767883844181,-25000.0,0.00017821,3]
[401002861,1767883844190,-300.0,0.00017823,2]
[401002864,1767883844210,-300.0,0.00017828,2]
[401002866,1767883844220,-25000.0,0.0001783,3]
[401002868,1767883844229,-1047.53522858,0.0001783,2]
[401002870,1767883844239,-1608.57952,0.0001783,2]
[401002872,1767883844249,-300.0,0.00017833,2]
[401002874,1767883844258,-300.0,0.00017835,2]
[401002876,1767883844268,-25000.0,0.00017838,3]
[401002878,1767883844278,-300.0,0.00017839,2]
[401002880,1767883844287,-300.0,0.00017842,2]
[401002882,1767883844298,-300.0,0.00017844,2]
[401002884,1767883844307,-300.0,0.00017846,2]
[401002886,1767883844317,-300.0,0.00017847,2]
[401002889,1767883844327,-25000.0,0.00017847,3]
[401002890,1767883844337,-300.0,0.00017848,2]
[401002892,1767883844346,-300.0,0.00017849,2]
[401002894,1767883844356,-300.0,0.0001785,2]
[401002896,1767883844366,-196.86885841,0.0001785,2]
[401002898,1767883844375,-300.0,0.00017851,2]
[401002900,1767883844385,-300.0,0.00017852,2]
[401002902,1767883844396,-300.0,0.00017854,2]
[401002904,1767883844406,-25000.0,0.00017856,3]
[401002906,1767883844418,-1608.57953,0.0001786,2]
[401002908,1767883844428,-300.0,0.00017863,2]
[401002910,1767883844439,-25000.0,0.00017865,3]
[401002912,1767883844448,-25000.0,0.00017865,3]
[401002914,1767883844458,-300.0,0.00017867,2]
[401002916,1767883844468,-300.0,0.00017869,2]
[401002918,1767883844478,-300.0,0.00017871,2]
[401002920,1767883844489,-300.0,0.00017872,2]
[401002923,1767883844499,-25000.0,0.00017874,3]
[401002925,1767883844510,-300.0,0.00017875,2]
[401002927,1767883844520,-300.0,0.00017878,2]
[401002929,1767883844529,-300.0,0.00017879,2]
[401002931,1767883844539,-1608.57953,0.0001788,2]
[401002933,1767883844548,-300.0,0.0001788,2]
[401002935,1767883844557,-150.0,0.00017882,2]
[401002937,1767883844567,-25000.0,0.00017882,3]
[401002939,1767883844577,-2321.9,0.00017884,2]
[401002941,1767883844586,-300.0,0.00017887,2]
[401002943,1767883844596,-300.0,0.00017891,2]
[401002945,1767883844607,-25000.0,0.00017891,3]
[401002947,1767883844616,-207.0,0.00017894,2]
[401002949,1767883844625,-300.0,0.00017897,2]
[401002951,1767883844635,-1000.0,0.00017899,2]
[401002953,1767883844644,-500.0,0.00017899,2]
[401002955,1767883844654,-173.15293317,0.000179,2]
[401002957,1767883844666,-25000.0,0.000179,3]
[401002959,1767883844675,-25000.0,0.000179,3]
[401002961,1767883844685,-423.76529882,0.000179,2]
[401002963,1767883844694,-26041.7002806,0.000179,2]
[401002965,1767883844704,-196.86885841,0.000179,2]
[401002967,1767883844714,-1383.62695824,0.000179,2]
[401002969,1767883844724,-10176.85598092,0.000179,2]
[401002971,1767883844733,-11778.0,0.000179,2]
[401002973,1767883844743,-300.0,0.00017902,2]
[401002975,1767883844752,-300.0,0.00017904,2]
[401002977,1767883844763,-300.0,0.00017906,2]
[401002979,1767883844774,-300.0,0.00017908,2]
[401002981,1767883844784,-1608.57953,0.0001791,2]
[401002983,1767883844794,-300.0,0.00017914,2]
[401002985,1767883844804,-300.0,0.00017916,2]
[401002987,1767883844813,-300.0,0.00017916,2]
[401002989,1767883844822,-300.0,0.00017924,2]
[401002991,1767883844832,-300.0,0.00017925,2]
[401002993,1767883844841,-300.0,0.00017935,2]
[401002995,1767883844851,-300.0,0.00017935,2]
[401002997,1767883844860,-300.0,0.00017937,2]
[401003000,1767883844870,-166.04276169,0.00017942,2]
[401003002,1767883844880,-300.0,0.00017943,2]
[401003004,1767883844889,-300.0,0.00017947,2]
[401003006,1767883844899,-300.0,0.00017957,2]
[401003008,1767883844909,-300.0,0.00017959,2]
[401003010,1767883844919,-300.0,0.00017961,2]
[401003012,1767883844929,-300.0,0.00017961,2]
[401003014,1767883844938,-300.0,0.00017969,2]
[401003016,1767883844947,-300.0,0.00017969,2]
[401003018,1767883844956,-300.0,0.0001797,2]
[401003020,1767883844966,-300.0,0.00017972,2]
[401003022,1767883844975,-352.9335528,0.00017973,2]
[401003024,1767883844984,-500.0,0.00017973,2]
[401003026,1767883844994,-500.0,0.00017973,2]
[401003028,1767883845004,-500.0,0.00017973,2]
[401003029,1767883845016,-159.904,0.00017973,2]
[401003032,1767883845025,-500.0,0.00017973,2]
[401003033,1767883845035,-235.35795411,0.00017973,2]
[401003034,1767883845044,-500.0,0.00017973,2]
[401003036,1767883845054,-500.0,0.00017973,2]
[401003038,1767883845064,-505.27205439,0.00017973,2]
[401003040,1767883845073,-500.0,0.00017973,2]
[401003042,1767883845085,-500.0,0.00017973,2]
[401003044,1767883845095,-500.0,0.00017973,2]
[401003046,1767883845104,-500.0,0.00017973,2]
[401003048,1767883845114,-500.0,0.00017973,2]
[401003050,1767883845123,-500.0,0.00017973,2]
[401003052,1767883845132,-500.0,0.00017973,2]
[401003054,1767883845142,-300.0,0.00017986,2]
[401003056,1767883845151,-300.0,0.00017988,2]
[401003058,1767883845160,-77146.9731645,0.00017994,2]
[401003060,1767883845173,-170.366876,0.00017994,2]
[401003062,1767883845182,-151.0,0.00017997,2]
[401003064,1767883845191,-500.0,0.00017998,2]
[401003065,1767883845201,-500.00000001,0.00017998,2]
[401003067,1767883845211,-500.0,0.00017998,2]
[401003069,1767883845221,-1800.93986278,0.00017998,2]
[401003071,1767883845230,-60500.5585359,0.00017999,2]
[401003073,1767883845239,-116918.9630644,0.00017999,2]
[401003075,1767883845249,-300.0,0.00017999,2]
[401003077,1767883845259,-500.0,0.00017999,2]
[401003079,1767883845268,-500.0,0.00017999,2]
[401003081,1767883845277,-300.0,0.00017999,2]
[401003083,1767883845286,-666.0,0.00017999,2]
[401003085,1767883845296,-300.0,0.00017999,2]
[401003087,1767883845305,-666.0,0.00017999,2]
[401003089,1767883845316,-300.0,0.00017999,2]
[401003091,1767883845325,-4657912.01970126,0.00018,2]
[401003102,1767883845425,-603.9459179,0.00018,2]
[401003206,1767883846631,-2436.0,0.00016352,2]
[401003208,1767883846641,-140.4863294,0.000179,2]
[401003211,1767883846669,-2255.75,0.000179,2]
[401003214,1767883846688,-2887.87335202,0.000179,2]
[401003216,1767883846698,-4115.96871417,0.00018,2]
[401007143,1767884069991,10000.0,0.000226,120]
[401007144,1767884077957,10000.0,0.000226,120]
[401007145,1767884084814,10000.0,0.000226,120]
[401007146,1767884091719,10000.0,0.000226,120]
[401007147,1767884098932,10000.0,0.000226,120]
[401007148,1767884107214,10000.0,0.000226,120]
[401007149,1767884121576,490.0,0.000226,120]
[401007150,1767884617690,150.0,1e-05,2]
[401007151,1767884671360,318.39335051,0.000226,120]
[401007152,1767884672803,424.52446735,0.000226,120]
[401007153,1767884675316,318.39335051,0.000226,120]
[401007154,1767884796358,-500.0,0.00010949,2]
[401007155,1767884796379,-250.0,0.00010955,2]
[401007156,1767884796400,-195.0,0.00010961,2]
[401007157,1767884796422,-195.0,0.00010973,2]
[401007158,1767884796444,-300.0,0.00010996,2]
[401007159,1767884796466,-195.0,0.00011012,2]
[401007160,1767884796487,-300.0,0.00011027,2]
[401007161,1767884796510,-300.0,0.00011027,2]
[401007162,1767884796531,-300.0,0.00011027,2]
[401007163,1767884796553,-300.0,0.00011043,2]
[401007164,1767884796574,-1200.0,0.00011043,2]
[401007165,1767884796595,-150.0,0.00011043,2]
[401007166,1767884796618,-824.09,0.00011044,2]
[401007167,1767884796640,-151.0,0.00011044,2]
[401007168,1767884796662,-151.0,0.00011044,2]
[401007169,1767884796683,-65.83556068,0.00011044,2]
[401007170,1767884835149,2200.0,0.000176,30]
[401007171,1767884835205,800.0,0.000176,30]
[401007172,1767884835557,2200.0,0.000176,30]
[401007173,1767884835622,800.0,0.000176,30]
[401007174,1767884836069,2200.0,0.000176,30]
[401007175,1767884836147,800.0,0.000176,30]
[401007176,1767884836567,2200.0,0.000176,30]
[401007177,1767884836631,800.0,0.000176,30]
[401007178,1767884838052,2200.0,0.000176,30]
[401007179,1767884838132,800.0,0.000176,30]
[401007180,1767884838346,2200.0,0.000176,30]
[401007181,1767884838405,800.0,0.000176,30]
[401007182,1767884838743,800.0,0.000176,30]
[401007183,1767884838900,2200.0,0.000176,30]
[401007184,1767884838963,800.0,0.000176,30]
[401007185,1767884839124,800.0,0.000176,30]
[401007186,1767884839484,2200.0,0.000176,30]
[401007187,1767884839672,800.0,0.000176,30]
[401007188,1767884840505,2200.0,0.000176,30]
[401007189,1767884840561,800.0,0.000176,30]
[401007190,1767884840625,500.0,0.000176,30]
[401007191,1767884840703,1000.0,0.000176,30]
[401007192,1767884840801,2200.0,0.000176,30]
[401007193,1767884840855,500.0,0.000176,30]
[401007194,1767884840936,800.0,0.000176,30]
[401007195,1767884841055,2200.0,0.000176,30]
[401007196,1767884841119,500.0,0.000176,30]
[401007197,1767884841205,800.0,0.000176,30]
[401007198,1767884841270,1000.0,0.000176,30]
[401007199,1767884841536,2200.0,0.000176,30]
[401007200,1767884841590,500.0,0.000152,30]
[401007201,1767884841880,800.0,0.000176,30]
[401007202,1767884841962,1000.0,0.000176,30]
[401007203,1767884842302,800.0,0.000176,30]
[401007204,1767884842361,2200.0,0.000176,30]
[401007205,1767884842420,858.61096555,0.000152,30]
[401007206,1767884842490,1000.0,0.000176,30]
[401007207,1767884842651,800.0,0.000152,30]
[401007208,1767884842712,2200.0,0.000176,30]
[401007209,1767884842793,1000.0,0.000176,30]
[401007210,1767884843027,800.0,0.000152,30]
[401007211,1767884843111,2200.0,0.000176,30]
[401007212,1767884843249,1000.0,0.000176,30]
[401007213,1767884843831,800.0,0.000152,30]
[401007214,1767884843916,2200.0,0.000152,30]
[401007215,1767884843988,1000.0,0.000176,30]
[401007216,1767884844121,800.0,0.000152,30]
[401007217,1767884844189,2200.0,0.000152,30]
[401007218,1767884844293,1000.0,0.000176,30]
[401007219,1767884844560,2200.0,0.000152,30]
[401007220,1767884844617,800.0,0.000152,30]
[401007221,1767884844692,500.0,0.000176,30]
[401007222,1767884844756,1000.0,0.000176,30]
[401007223,1767884844890,500.0,0.000176,30]
[401007224,1767884845037,2200.0,0.000152,30]
[401007225,1767884845107,800.0,0.000152,30]
[401007226,1767884845170,500.0,0.000176,30]
[401007227,1767884845224,500.0,0.000152,30]
[401007228,1767884845605,1000.0,0.000176,30]
[401007229,1767884845744,2200.0,0.000152,30]
[401007230,1767884845847,800.0,0.000152,30]
[401007231,1767884845943,1000.0,0.000176,30]
[401007232,1767884846115,2200.0,0.000152,30]
[401007233,1767884846218,800.0,0.000152,30]
[401007234,1767884846598,2200.0,0.000152,30]
[401007235,1767884846792,800.0,0.000152,30]
[401007236,1767884846878,1000.0,0.000176,30]
[401007237,1767884847006,283.44677775,0.000176,30]
[401007238,1767884847074,3800.0,0.000176,30]
[401007239,1767884847147,2200.0,0.000152,30]
[401007240,1767884847223,800.0,0.000152,30]
[401007241,1767884847536,1000.0,0.000176,30]
[401007242,1767884847625,500.0,0.000176,30]
[401007243,1767884847772,3800.0,0.000176,30]
[401007244,1767884847954,800.0,0.000152,30]
[401007245,1767884848008,2200.0,0.000152,30]
[401007246,1767884848653,1000.0,0.000176,30]
[401007247,1767884848742,500.0,0.000176,30]
[401007248,1767884848918,3800.0,0.000176,30]
[401007249,1767884849014,800.0,0.000152,30]
[401007250,1767884849372,2200.0,0.000152,30]
[401007251,1767884849459,1000.0,0.000152,30]
[401007252,1767884849525,849.79344146,0.000152,30]
[401007253,1767884849759,3800.0,0.000176,30]
[401007254,1767884849832,2200.0,0.000152,30]
[401007255,1767884849893,800.0,0.000152,30]
[401007256,1767884850026,1000.0,0.000152,30]
[401007257,1767884850141,666.36805321,0.000176,30]
[401007258,1767884850267,2200.0,0.000176,30]
[401007259,1767884850386,3800.0,0.000176,30]
[401007260,1767884850464,2200.0,0.000152,30]
[401007261,1767884850518,500.0,0.000176,30]
[401007262,1767884850575,914.07784572,0.000152,30]
[401007263,1767884850637,1000.0,0.000152,30]
[401007264,1767884851113,2200.0,0.000176,30]
[401007265,1767884851184,3800.0,0.000176,30]
[401007266,1767884851263,2200.0,0.000152,30]
[401007267,1767884851320,500.0,0.000176,30]
[401007268,1767884851377,1000.0,0.000152,30]
[401007269,1767884851510,500.0,0.000176,30]
[401007270,1767884851569,2200.0,0.000176,30]
[401007271,1767884851672,3800.0,0.000176,30]
[401007272,1767884851761,2889.68758131,0.000152,30]
[401007273,1767884851817,500.0,0.000176,30]
[401007274,1767884851886,1000.0,0.000152,30]
[401007275,1767884851963,500.0,0.000176,30]
[401007276,1767884852033,185.97616292,0.000176,30]
[401007277,1767884852090,2200.0,0.000176,30]
[401007278,1767884852145,500.0,0.000176,30]
[401007279,1767884852434,500.0,0.000176,30]
[401007280,1767884852487,3800.0,0.000176,30]
[401007281,1767884852546,500.0,0.000176,30]
[401007282,1767884852617,1000.0,0.000152,30]
[401007283,1767884852712,500.0,0.000176,30]
[401007284,1767884852783,576.7963977,0.000152,30]
[401007285,1767884852839,500.0,0.000176,30]
[401007286,1767884852895,2200.0,0.000176,30]
[401007287,1767884852947,3800.0,0.000176,30]
[401007288,1767884853006,500.0,0.000176,30]
[401007289,1767884853062,1000.0,0.000152,30]
[401007290,1767884853238,500.0,0.000176,30]
[401007291,1767884853330,500.0,0.000176,30]
[401007292,1767884853385,2200.0,0.000176,30]
[401007293,1767884853447,500.0,0.000176,30]
[401007294,1767884853505,3800.0,0.000176,30]
[401007295,1767884853787,1000.0,0.000152,30]
[401007296,1767884853846,500.0,0.000176,30]
[401007297,1767884853963,500.0,0.000176,30]
[401007298,1767884854079,500.0,0.000176,30]
[401007299,1767884854134,2200.0,0.000176,30]
[401007300,1767884854196,500.0,0.000176,30]
[401007301,1767884854258,500.0,0.000176,30]
[401007302,1767884854338,3800.0,0.000176,30]
[401007303,1767884854430,1000.0,0.000152,30]
[401007304,1767884854632,500.0,0.000176,30]
[401007305,1767884854699,500.0,0.000176,30]
[401007306,1767884854752,2200.0,0.000176,30]
[401007307,1767884854805,500.0,0.000176,30]
[401007308,1767884854865,3800.0,0.000176,30]
[401007309,1767884854923,500.0,0.000176,30]
[401007310,1767884855187,1000.0,0.000152,30]
[401007311,1767884855249,500.0,0.000176,30]
[401007312,1767884855323,500.0,0.000152,30]
[401007313,1767884855395,700.0,0.000176,30]
[401007314,1767884855459,500.0,0.000176,30]
[401007315,1767884855520,2200.0,0.000176,30]
[401007316,1767884855575,500.0,0.000176,30]
[401007317,1767884855636,500.0,0.000176,30]
[401007318,1767884855698,1000.0,0.000152,30]
[401007319,1767884855757,3800.0,0.000176,30]
[401007320,1767884855849,500.0,0.000152,30]
[401007321,1767884855909,252.48189088,0.000176,30]
[401007322,1767884856011,500.0,0.000152,30]
[401007323,1767884856077,2200.0,0.000176,30]
[401007324,1767884856135,500.0,0.000176,30]
[401007325,1767884856209,500.0,0.000176,30]
[401007326,1767884856378,3800.0,0.000176,30]
[401007327,1767884856690,1000.0,0.000152,30]
[401007328,1767884856746,700.0,0.000176,30]
[401007329,1767884856806,500.0,0.000152,30]
[401007330,1767884856866,500.0,0.000152,30]
[401007331,1767884856928,2200.0,0.000176,30]
[401007332,1767884856980,500.0,0.000176,30]
[401007333,1767884857055,500.0,0.000176,30]
[401007334,1767884857115,3800.0,0.000176,30]
[401007335,1767884857167,1818.69933547,0.000152,30]
[401007336,1767884857222,700.0,0.000176,30]
[401007337,1767884857284,500.0,0.000152,30]
[401007338,1767884857431,500.0,0.000152,30]
[401007339,1767884857506,2200.0,0.000176,30]
[401007340,1767884857558,500.0,0.000176,30]
[401007341,1767884857610,500.0,0.000176,30]
[401007342,1767884857667,3800.0,0.000152,30]
[401007343,1767884857940,700.0,0.000176,30]
[401007344,1767884858050,500.0,0.000152,30]
[401007345,1767884858193,500.0,0.000152,30]
[401007346,1767884858247,500.0,0.000176,30]
[401007347,1767884858306,500.0,0.000152,30]
[401007348,1767884858379,2200.0,0.000176,30]
[401007349,1767884858444,3800.0,0.000152,30]
[401007350,1767884858504,500.0,0.000152,30]
[401007351,1767884858635,700.0,0.000176,30]
[401007352,1767884859750,500.0,0.000152,30]
[401007353,1767884859819,500.0,0.000176,30]
[401007354,1767884859882,832.4882589,0.000152,30]
[401007355,1767884859947,2200.0,0.000176,30]
[401007356,1767884860000,3800.0,0.000152,30]
[401007357,1767884860058,700.0,0.000176,30]
[401007358,1767884860114,500.0,0.000152,30]
[401007359,1767884860178,500.0,0.000152,30]
[401007360,1767884860233,500.0,0.000152,30]
[401007361,1767884860354,2200.0,0.000176,30]
[401007362,1767884860409,3800.0,0.000152,30]
[401007363,1767884860479,700.0,0.000176,30]
[401007364,1767884860529,500.0,0.000152,30]
[401007365,1767884860605,500.0,0.000152,30]
[401007366,1767884860664,500.0,0.000152,30]
[401007367,1767884860872,2200.0,0.000152,30]
[401007368,1767884861173,700.0,0.000176,30]
[401007369,1767884861237,939.92941109,0.000152,30]
[401007370,1767884861353,500.0,0.000152,30]
[401007371,1767884861413,831.5216605,0.000152,30]
[401007372,1767884861466,3800.0,0.000152,30]
[401007373,1767884861517,2200.0,0.000152,30]
[401007374,1767884861593,700.0,0.000176,30]
[401007375,1767884861712,500.0,0.000152,30]
[401007376,1767884861769,2200.0,0.000152,30]
[401007377,1767884861829,700.0,0.000176,30]
[401007378,1767884861913,500.0,0.000152,30]
[401007379,1767884862036,2200.0,0.000152,30]
[401007380,1767884862144,700.0,0.000176,30]
[401007381,1767884862251,3800.0,0.000152,30]
[401007382,1767884862311,500.0,0.000152,30]
[401007383,1767884862625,2200.0,0.000152,30]
[401007384,1767884862743,700.0,0.000176,30]
[401007385,1767884862867,3800.0,0.000152,30]
[401007386,1767884862925,500.0,0.000152,30]
[401007387,1767884862986,2200.0,0.000152,30]
[401007388,1767884863069,700.0,0.000176,30]
[401007389,1767884863146,3800.0,0.000152,30]
[401007390,1767884863205,500.0,0.000152,30]
[401007391,1767884863264,2200.0,0.000152,30]
[401007392,1767884863339,700.0,0.000176,30]
[401007393,1767884863448,500.0,0.000152,30]
[401007394,1767884863507,3800.0,0.000152,30]
[401007395,1767884863569,2200.0,0.000152,30]
[401007396,1767884863640,700.0,0.000152,30]
[401007397,1767884863705,500.0,0.000152,30]
[401007398,1767884863777,3800.0,0.000152,30]
[401007399,1767884864181,2200.0,0.000152,30]
[401007400,1767884864295,700.0,0.000152,30]
[401007401,1767884864472,738.33207026,0.000152,30]
[401007402,1767884864596,7100.0,0.000152,30]
[401007403,1767884864651,2200.0,0.000152,30]
[401007404,1767884864787,2200.0,0.000152,30]
[401007405,1767884865005,2200.0,0.000152,30]
[401007406,1767884865078,700.0,0.000152,30]
[401007407,1767884865154,2200.0,0.000152,30]
[401007408,1767884865240,700.0,0.000152,30]
[401007409,1767884865350,4047.72033267,0.000152,30]